bitfinex/quotes_ETHUSD_20220310
["timestamp","ask_amount","ask_price","bid_price","bid_amount"]
[1646887215909,8.65650764,2613.3,2612.5,0.00187236]
[1646887216110,8.28053764,2613.3,2612.5,0.00187236]
[1646887216309,7.32304764,2613.3,2612.5,0.00187236]
[1646887217914,7.32304764,2613.3,2612.8,1.13808357]
[1646887218115,7.32304764,2613.3,2612.9,0.07124372]
[1646887218312,7.32304764,2613.3,2612.6,15.0469286]
[1646887218563,0.00304764,2613.3,2612.7,0.07133968]
[1646887218964,0.00304764,2613.3,2612.9,11.860946]
[1646887219164,0.00304764,2613.3,2613.2,0.09026069]
[1646887219165,4.764e-05,2613.3,2613.2,0.09026069]
[1646887219365,1.176634,2615.1,2613.5,0.0845414]
[1646887219366,0.005834,2615.1,2613.5,0.0845414]
[1646887219563,0.005834,2615.1,2613.6,12.2909]
[1646887219765,0.58463943,2615.1,2613.9,11.862733]
[1646887219965,0.57880543,2615.1,2614.1,11.47]
[1646887220264,0.57880543,2615.1,2614.3,0.014699]
[1646887220468,0.57880543,2615.1,2614.7,0.08479924]
[1646887221569,0.57880543,2615.1,2614.3,0.014699]
[1646887221770,0.95470543,2615.1,2614.3,0.014699]
[1646887222311,0.95470543,2615.1,2614.4,0.08043726]
[1646887222312,1.0284916,2615.0,2614.4,0.08043726]
[1646887223511,0.95693,2614.9,2614.3,0.014699]
[1646887223713,1.43887379,2614.9,2614.0,0.07028811]
[1646887223915,3.0,2614.6,2613.3,0.00075236]
[1646887224113,7.6959,2614.5,2613.3,0.00075236]
[1646887224316,0.75600581,2613.5,2613.3,0.00075236]
[1646887224516,1.13190581,2613.5,2613.3,0.00075236]
[1646887224716,2.38942331,2613.5,2613.3,0.00075236]
[1646887224918,0.3759,2613.2,2612.3,0.011667]
[1646887225118,3.9,2613.3,2612.3,0.011667]
[1646887225119,0.3759,2613.0,2612.3,0.011667]
[1646887225319,1.91551,2613.1,2612.3,0.011667]
[1646887225320,2.29141,2613.1,2612.3,0.011667]
[1646887225521,7.32,2613.3,2612.7,1.07451066]
[1646887225725,0.95734,2613.7,2612.8,0.07860785]
[1646887225958,0.95734,2613.7,2612.8,0.09030685]
[1646887226461,0.95753,2613.6,2612.8,0.011699]
[1646887226663,0.3759,2613.2,2612.6,0.153101]
[1646887227264,0.3759,2613.2,2612.3,0.011667]
[1646887227265,0.3759,2613.0,2612.3,1.03127736]
[1646887227462,0.3759,2613.0,2612.4,0.08861138]
[1646887227862,0.95748,2613.4,2612.3,0.011667]
[1646887228164,8.27748,2613.4,2612.3,0.011667]
[1646887228762,9.23499,2613.4,2612.3,0.011667]
[1646887228962,0.77234175,2613.3,2612.5,1.11101172]
[1646887229162,0.77234175,2613.3,2612.6,0.07955424]
[1646887229562,0.77234175,2613.3,2612.3,0.011667]
[1646887229811,0.95757,2613.2,2612.5,0.07911906]
[1646887230013,0.96050484,2613.1,2612.8,0.00151155]
[1646887230410,0.00291484,2613.1,2612.8,0.00151155]
[1646887231817,0.00291484,2613.1,2612.8,0.01320755]
[1646887232015,0.00291484,2613.1,2612.8,0.09366859]
[1646887232215,0.00291484,2613.1,2612.9,11.47]
[1646887232416,0.00291484,2613.1,2613.0,0.08168124]
[1646887232615,0.00291484,2613.1,2612.8,0.00151155]
[1646887234859,0.95754,2613.2,2612.8,0.00151155]
[1646887235060,1.33344,2613.2,2612.8,0.00151155]
[1646887235460,2.29098,2613.2,2612.8,0.00151155]
[1646887236269,0.3759,2613.2,2612.8,0.00151155]
[1646887236666,1.33343,2613.2,2612.8,0.00151155]
[1646887237309,2.2910482,2613.2,2612.8,0.00151155]
[1646887238111,3.2485782,2613.2,2612.8,0.00151155]
[1646887239014,1.91535,2613.0,2612.8,0.00151155]
[1646887241064,0.05093734,2612.9,2611.6,7.01134166]
[1646887241265,0.015953,2612.6,2610.9,0.00796]
[1646887241464,3.0,2611.8,2611.0,1.58930434]
[1646887241667,3.0,2611.8,2610.9,0.007]
[1646887241668,0.05767639,2611.6,2610.9,0.007]
[1646887241862,0.05255911,2611.5,2610.9,0.007]
[1646887242063,0.05597484,2611.3,2611.1,1.23397143]
[1646887242262,1.01434484,2611.3,2611.1,1.23397143]
[1646887242462,0.05597484,2611.3,2611.1,1.23397143]
[1646887242661,0.05200035,2611.4,2611.1,1.23397143]
[1646887242861,0.04919236,2611.7,2611.1,1.23397143]
[1646887243261,0.04919236,2611.7,2611.5,0.90854971]
[1646887243464,2.87432,2611.6,2610.9,0.007]
[1646887243764,0.05041709,2611.4,2610.9,0.007]
[1646887244370,1.00852709,2611.4,2610.9,0.007]
[1646887244566,3.5,2611.3,2611.2,0.00153951]
[1646887244808,0.05467239,2611.3,2611.2,0.00153951]
[1646887245410,3.55467239,2611.3,2611.2,0.00153951]
[1646887245609,3.87437,2611.4,2611.2,0.00153951]
[1646887245809,3.8759,2611.3,2610.9,0.007]
[1646887246011,5.1681797,2611.2,2610.9,0.007]
[1646887246211,0.95844,2611.1,2610.9,0.007]
[1646887247311,7.0850697,2611.2,2610.9,0.007]
[1646887247912,0.95847,2610.8,2609.8,0.07777592]
[1646887248111,0.95847,2610.8,2609.9,1.58971116]
[1646887248112,0.9584604,2610.5,2609.9,1.58971116]
[1646887248311,0.9584604,2610.5,2610.0,0.06675147]
[1646887248558,0.9584604,2610.5,2609.7,0.07934373]
[1646887248759,1.9169,2610.6,2610.5,0.73723339]
[1646887249363,2.87535,2610.6,2610.5,0.73723339]
[1646887253420,4.05729379,2610.6,2610.5,0.73723339]
[1646887253615,0.95876,2610.3,2609.6,0.16378984]
[1646887253816,2.8762236,2610.1,2609.7,1.58992647]
[1646887254114,2.8762236,2610.1,2609.6,0.01051184]
[1646887255015,1.9173743,2610.0,2609.6,0.01051184]
[1646887255219,3.8349143,2610.0,2609.6,0.01051184]
[1646887255416,4.7935843,2610.0,2609.6,0.01051184]
[1646887255815,0.05396566,2609.8,2609.6,0.01051184]
[1646887256865,1.01273566,2609.8,2609.6,0.01051184]
[1646887257069,0.05396566,2609.8,2609.6,0.01051184]
[1646887257269,0.9587143,2610.0,2609.6,0.01051184]
[1646887257466,0.9087143,2610.0,2609.6,0.01051184]
[1646887257766,0.0544832,2609.8,2609.6,0.01051184]
[1646887258265,1.0131632,2609.8,2609.6,0.01051184]
[1646887258474,3.3759,2609.6,2609.3,0.02610154]
[1646887258666,3.3759,2609.6,2609.3,0.04712522]
[1646887258865,0.05172695,2609.5,2609.3,0.04712522]
[1646887259269,1.01088695,2609.5,2609.3,0.04712522]
[1646887259466,2.8776274,2609.5,2609.3,0.04712522]
[1646887259728,6.7128708,2610.3,2609.3,0.04712522]
[1646887259729,0.9587007,2610.0,2609.3,0.04712522]
[1646887259914,0.0024326,2609.7,2609.6,1.16623433]
[1646887260115,0.18194379,2610.9,2609.7,3.9]
[1646887260315,0.06186832,2611.0,2610.8,1.20439143]
[1646887260316,2.87534,2611.0,2610.8,1.20439143]
[1646887260514,0.04797719,2611.2,2610.8,1.20439143]
[1646887260716,4.50624869,2611.2,2610.1,0.445]
[1646887260918,5.01611529,2611.2,2609.9,0.00096]
[1646887261123,0.42703926,2611.0,2609.7,0.00096]
[1646887261317,0.42703926,2611.0,2609.6,0.0223698]
[1646887261318,0.3759,2610.8,2609.6,0.0223698]
[1646887261520,0.3759,2610.4,2609.6,0.0223698]
[1646887261719,0.9587,2610.2,2609.9,0.98147046]
[1646887262120,0.9587,2610.2,2609.6,0.0223698]
[1646887262818,0.0507541,2610.1,2609.6,0.0223698]
[1646887263223,0.0507541,2610.1,2609.6,0.91811087]
[1646887264562,0.0507541,2610.1,2609.6,0.0223698]
[1646887264764,5.42027129,2610.1,2609.6,0.02102368]
[1646887264966,5.46856251,2610.1,2609.6,0.02102368]
[1646887265164,6.6505063,2610.1,2609.6,0.02102368]
[1646887265363,2.1505063,2610.1,2609.6,0.02102368]
[1646887265563,3.10221508,2610.1,2609.6,0.02102368]
[1646887265765,3.06111248,2610.1,2609.6,0.02102368]
[1646887265964,4.06111248,2610.1,2609.6,0.02102368]
[1646887266369,4.62970837,2610.1,2609.6,0.02102368]
[1646887266570,7.80642837,2610.1,2609.6,0.02102368]
[1646887266772,8.25142837,2610.1,2609.6,0.02102368]
[1646887266969,7.95142837,2610.1,2609.6,0.02102368]
[1646887267226,8.06948458,2610.1,2609.6,0.02102368]
[1646887267414,8.12280421,2610.1,2609.6,0.02102368]
[1646887267617,19.29280421,2610.1,2609.6,0.02102368]
[1646887267813,7.76948458,2610.1,2609.6,0.02102368]
[1646887268013,2.36527129,2610.1,2609.6,0.10987657]
[1646887268215,1.92027129,2610.1,2609.6,0.10987657]
[1646887268516,1.92027129,2610.1,2609.6,0.02102368]
[1646887269013,1.96938841,2610.1,2609.6,0.02102368]
[1646887269214,1.92027129,2610.1,2609.6,0.02102368]
[1646887269615,2.87907129,2610.1,2609.6,0.02102368]
[1646887269813,2.87907129,2610.1,2610.0,1.10636202]
[1646887270013,2.87907129,2610.1,2609.8,0.00116793]
[1646887270615,4.79688649,2610.1,2609.8,0.00116793]
[1646887270818,3.83808649,2610.1,2609.8,0.00116793]
[1646887271082,3.83808649,2610.1,2608.0,3.09077614]
[1646887271083,0.95938,2609.7,2608.0,3.09077614]
[1646887271274,0.9594,2609.4,2608.3,0.83678111]
[1646887271473,0.9594,2609.4,2608.4,3.5]
[1646887271673,0.0122275,2608.8,2608.6,0.04433703]
[1646887271869,0.45792186,2609.1,2608.7,3.82445499]
[1646887272073,0.9593171,2608.9,2608.8,1.17947162]
[1646887272271,0.95933,2608.8,2608.4,3.5]
[1646887272473,2.3637,2608.8,2608.3,0.89731383]
[1646887272776,2.3637,2608.8,2608.5,0.04490545]
[1646887272972,3.83739,2608.9,2608.5,0.04490545]
[1646887273175,1.91866,2608.9,2608.5,0.04490545]
[1646887273773,0.18194379,2609.6,2608.8,3.9]
[1646887273774,1.18194379,2609.6,2608.8,3.9]
[1646887273976,1.18194379,2609.6,2609.3,3.0]
[1646887273977,0.18194379,2609.6,2609.3,3.0]
[1646887274172,0.00271129,2610.1,2608.9,0.04263176]
[1646887274374,0.00271129,2610.1,2609.3,1.11084572]
[1646887274576,1.9178097,2610.3,2609.8,3.0]
[1646887274826,1.91748,2610.5,2610.0,3.0]
[1646887275023,0.2545,2610.9,2610.4,3.0]
[1646887275231,0.2545,2610.9,2610.5,3.5]
[1646887275426,0.2545,2610.9,2610.5,0.87640421]
[1646887275629,3.1302547,2610.9,2609.7,3.00096]
[1646887275822,6.8e-05,2609.8,2609.7,6.50096]
[1646887276023,1.9173,2610.7,2609.7,6.5]
[1646887276024,0.964474,2610.7,2609.7,6.5]
[1646887276224,0.964474,2610.7,2609.7,3.5]
[1646887276624,0.964474,2610.7,2609.7,6.5]
[1646887276822,0.95864,2610.7,2609.7,6.5]
[1646887277123,0.95864,2610.7,2609.7,3.0]
[1646887277323,0.95859,2610.4,2609.7,3.0]
[1646887277526,1.40379,2610.3,2609.7,3.0]
[1646887277926,1.40379,2610.3,2609.5,4.4117]
[1646887278128,1.917596,2610.3,2610.0,3.0]
[1646887278325,0.4586,2610.3,2610.1,1.04556274]
[1646887278566,0.2545,2610.9,2610.2,3.0]
[1646887278964,1.21297,2610.9,2610.1,1.04556274]
[1646887279166,1.21297,2610.9,2610.8,3.0]
[1646887279167,4.08893,2610.9,2610.8,3.0]
[1646887279367,0.95847,2610.7,2610.6,1.146023]
[1646887279563,0.95847,2610.7,2609.6,1.1836]
[1646887279564,0.95847,2610.7,2609.9,0.00096]
[1646887279764,0.00287236,2610.6,2609.9,0.00107468]
[1646887279970,1.92003236,2610.6,2609.9,0.00107468]
[1646887280166,0.3759,2610.5,2609.9,0.00107468]
[1646887280365,0.18194379,2610.5,2609.9,0.00107468]
[1646887280568,0.95853,2610.5,2610.3,0.95232096]
[1646887280764,0.95853,2610.5,2609.9,0.00107468]
[1646887280964,1.14047379,2610.5,2609.9,0.00107468]
[1646887281170,0.8209,2610.4,2609.9,7.468e-05]
[1646887281371,3.25284,2610.3,2609.9,7.468e-05]
[1646887281573,0.445,2610.2,2609.9,7.468e-05]
[1646887281768,0.445,2610.2,2609.3,0.01468928]
[1646887281769,0.3759,2610.0,2609.3,0.01468928]
[1646887281973,0.95902,2610.1,2609.3,0.01468928]
[1646887281974,13.76405,2609.7,2609.3,0.01468928]
[1646887282228,12.2909,2609.6,2609.1,9.528e-05]
[1646887282418,12.2909,2609.6,2609.1,0.02947384]
[1646887282419,0.04956301,2609.5,2609.1,0.02947384]
[1646887282616,0.8209,2609.4,2609.1,0.02947384]
[1646887282817,0.8209,2609.4,2609.2,0.04092649]
[1646887282818,0.95922,2609.3,2609.2,0.04092649]
[1646887283121,0.95922,2609.3,2609.1,0.02947384]
[1646887283319,1.88616379,2609.3,2609.1,0.02947384]
[1646887283519,0.18194379,2609.2,2608.5,0.0862569]
[1646887283717,4.2826025,2609.1,2608.5,0.0862569]
[1646887283917,0.9594,2608.9,2608.6,0.99790409]
[1646887284117,0.9594,2608.9,2608.2,3.11150018]
[1646887284318,0.745,2608.9,2608.2,3.11150018]
[1646887284517,0.9593804,2608.8,2608.2,0.11150018]
[1646887284718,0.445,2608.7,2608.2,0.11150018]
[1646887284921,0.18194379,2608.8,2608.4,6.5]
[1646887285117,0.9593,2608.8,2608.5,3.0]
[1646887285520,0.9593,2608.8,2608.4,3.5]
[1646887285725,0.9593,2608.8,2608.2,0.11150018]
[1646887285726,0.9593,2608.8,2608.3,1.80571846]
[1646887285971,1.91867,2608.8,2608.3,1.80571846]
[1646887286175,1.91867,2608.8,2608.5,3.0]
[1646887286375,0.95905,2609.0,2608.7,3.0]
[1646887286575,0.95905,2609.0,2608.8,3.5]
[1646887286975,0.00289126,2609.6,2608.9,1.15302655]
[1646887287378,0.00289126,2609.6,2609.0,3.5]
[1646887287580,9.126e-05,2609.6,2609.5,3.0]
[1646887287782,9.126e-05,2609.6,2609.5,6.5]
[1646887287976,9.126e-05,2609.6,2609.5,8.09035289]
[1646887288177,9.126e-05,2609.6,2609.5,4.5902251]
[1646887288480,9.126e-05,2609.6,2609.5,0.07020666]
[1646887288779,2.87651,2610.4,2609.6,0.00096]
[1646887288780,0.458,2609.8,2609.6,0.00096]
[1646887288976,0.458,2609.8,2609.5,0.07573415]
[1646887289175,0.458,2609.8,2609.6,0.07906881]
[1646887289825,0.458,2609.8,2609.0,0.09137568]
[1646887290024,0.758,2609.8,2609.0,0.09041568]
[1646887290229,0.0028824,2609.5,2609.1,0.00108613]
[1646887290824,0.0028824,2609.5,2609.1,0.07873468]
[1646887291031,3.8395824,2609.5,2609.2,3.0]
[1646887291326,3.8804424,2609.5,2609.3,0.07840095]
[1646887291731,0.95912,2609.4,2609.1,0.08638134]
[1646887293780,0.95913,2609.3,2609.1,0.08638134]
[1646887294884,7.555e-05,2609.3,2609.2,3.0]
[1646887295684,0.3759,2610.2,2609.3,3.90072445]
[1646887295883,0.95878,2609.8,2609.6,3.0]
[1646887296092,0.95878,2609.8,2609.7,0.07223528]
[1646887296886,0.95878,2609.8,2609.5,0.07314522]
[1646887297316,0.95878,2609.8,2609.7,3.0]
[1646887297519,1.9175,2610.5,2609.7,3.08897025]
[1646887297719,7.19981332,2610.9,2609.8,0.08065771]
[1646887297916,7.19981332,2610.9,2610.6,3.0]
[1646887297917,0.58401332,2610.9,2610.6,3.0]
[1646887298117,0.58401332,2610.9,2610.7,0.08600202]
[1646887298317,0.58401332,2610.9,2610.6,3.0]
[1646887298318,0.95847,2610.8,2610.6,3.0]
[1646887298516,0.95847,2610.8,2610.7,0.07605219]
[1646887298721,0.95847,2610.8,2610.4,3.08028115]
[1646887298918,0.95847,2610.8,2610.5,0.07551754]
[1646887299520,1.917,2610.8,2610.4,3.0]
[1646887299818,1.917,2610.8,2610.5,0.07395644]
[1646887300618,3.09483845,2610.8,2610.5,0.07395644]
[1646887300818,2.917,2610.8,2610.5,0.07395644]
[1646887301072,2.917,2610.8,2610.7,3.0]
[1646887301073,1.917,2610.8,2610.7,3.0]
[1646887301278,1.917,2610.8,2610.5,0.07510981]
[1646887301876,0.95847,2610.8,2610.7,3.0]
[1646887302077,0.9584356,2611.4,2610.7,3.0]
[1646887302078,0.09926255,2611.6,2610.9,2.1]
[1646887302283,0.13819997,2611.7,2611.0,0.07903075]
[1646887302478,0.57631987,2611.9,2611.4,3.0]
[1646887302676,0.57631987,2611.9,2611.6,3.0]
[1646887302877,1.0,2612.1,2611.8,3.0]
[1646887302878,1.91611,2612.1,2611.8,3.0]
[1646887303080,1.08391714,2612.4,2612.0,3.0]
[1646887303279,0.95798,2612.5,2612.3,3.0]
[1646887303478,1.91585,2612.8,2612.4,0.06983909]
[1646887303780,1.91585,2612.8,2611.7,0.0862336]
[1646887303975,1.91585,2612.8,2612.3,0.08624651]
[1646887303976,1.91581,2612.5,2612.3,0.08624651]
[1646887304178,2.87379,2612.5,2612.3,0.08624651]
[1646887304579,0.95789,2612.4,2612.3,0.08624651]
[1646887304824,0.95789,2612.4,2611.7,0.0744571]
[1646887305430,0.18194379,2612.3,2611.7,0.0744571]
[1646887305628,3.8319,2612.5,2611.7,0.0744571]
[1646887305629,0.95802,2612.2,2611.7,0.0744571]
[1646887305831,0.95802,2612.2,2612.0,0.07275084]
[1646887306031,0.95802,2612.2,2612.0,3.0]
[1646887306234,0.95802,2612.2,2611.7,3.0]
[1646887306434,0.95802,2612.2,2611.8,0.08912798]
[1646887306631,0.95802,2612.2,2611.9,3.0]
[1646887306832,0.95788,2612.3,2611.4,0.011667]
[1646887307032,0.95788,2612.3,2611.4,0.08470654]
[1646887307632,0.95788,2612.3,2611.7,3.0]
[1646887307832,0.95788,2612.3,2611.8,0.0825082]
[1646887308031,0.95788,2612.3,2612.0,1.07364187]
[1646887308232,0.95788,2612.3,2612.1,0.06930635]
[1646887308473,0.95788,2612.3,2611.0,1.25999507]
[1646887308474,0.04802125,2612.2,2611.0,3.0]
[1646887308672,1.88482379,2612.3,2610.9,0.00131147]
[1646887308871,0.95836,2611.9,2611.1,3.0]
[1646887309088,0.95836,2611.9,2611.2,3.5]
[1646887309089,0.95823,2611.8,2611.2,3.5]
[1646887309273,1.14017379,2611.8,2611.0,3.0]
[1646887309573,1.14017379,2611.8,2611.1,6.5]
[1646887309873,1.91664,2611.7,2611.6,0.00130198]
[1646887310474,2.09858379,2611.7,2611.6,0.00130198]
[1646887311382,1.91664,2611.7,2611.6,0.00130198]
[1646887311980,1.91664,2611.7,2611.6,1.98e-06]
[1646887311981,2.83441326,2611.7,2611.6,1.98e-06]
[1646887312251,3.84358379,2611.7,2610.6,0.08109134]
[1646887312448,1.91698,2611.4,2610.6,0.08109134]
[1646887312648,1.91709,2611.2,2610.6,0.08109134]
[1646887312850,0.445,2611.1,2610.6,0.08109134]
[1646887313450,0.445,2611.1,2610.8,1.19438875]
[1646887313652,0.95853,2611.0,2610.9,0.08408092]
[1646887313853,11.47,2610.9,2610.6,0.07096424]
[1646887314054,0.3759,2610.7,2610.3,0.0744039]
[1646887314259,0.445,2610.6,2610.3,0.0744039]
[1646887314955,2.9174,2610.8,2610.3,0.0744039]
[1646887314956,0.95872,2610.5,2610.3,0.0744039]
[1646887315255,0.95872,2610.5,2610.4,3.0]
[1646887315753,0.95872,2610.5,2610.4,3.93904875]
[1646887315976,0.95872,2610.5,2610.4,3.0]
[1646887316370,0.95872,2610.5,2610.3,0.0744039]
[1646887317174,1.91736,2610.4,2610.3,0.0744039]
[1646887317575,1.91736,2610.4,2609.4,1.247]
[1646887317576,2.66236,2610.4,2609.6,3.0]
[1646887317776,0.959,2610.1,2609.6,0.08934448]
[1646887317976,1.404,2610.1,2609.6,0.08934448]
[1646887318174,1.91785,2609.9,2609.6,3.08934448]
[1646887318372,1.91785,2609.9,2609.7,1.18332448]
[1646887318577,1.91785,2609.9,2609.8,3.08937336]
[1646887318778,1.91785,2609.9,2609.8,0.08937336]
[1646887318975,1.91785,2609.9,2609.8,3.08937336]
[1646887319174,1.91785,2609.9,2609.8,0.08937336]
[1646887320625,2.21785,2609.9,2609.8,0.08937336]
[1646887320823,1.91785,2609.9,2609.8,0.08937336]
[1646887321025,0.95864,2610.2,2609.9,0.07535685]
[1646887321225,0.95864,2610.2,2610.1,3.0]
[1646887321723,0.95864,2610.2,2609.9,0.07535685]
[1646887322729,0.95864,2610.2,2610.1,3.0]
[1646887323780,0.95864,2610.2,2610.1,4.14967121]
[1646887324187,0.00263289,2610.4,2610.1,4.14967121]
[1646887324385,0.00263289,2610.4,2610.3,3.0]
[1646887324588,0.95856,2610.5,2610.3,3.0]
[1646887324784,0.95856,2610.5,2610.4,0.08642535]
[1646887328726,0.95859,2610.8,2610.4,0.08642535]
[1646887328727,0.95846,2610.8,2610.4,0.08642535]
[1646887328928,0.95846,2610.8,2610.7,3.0]
[1646887329225,1.53536318,2610.8,2610.7,3.08790101]
[1646887330525,1.91686,2611.1,2610.7,3.08790101]
[1646887330727,18.47957,2612.1,2611.1,0.07286348]
[1646887330728,1.91664,2611.8,2611.1,0.07286348]
[1646887330971,6.5174,2612.3,2611.7,3.0]
[1646887330972,0.57435808,2612.0,2611.7,3.0]
[1646887331177,0.57435808,2612.0,2611.4,0.013534]
[1646887331178,1.53240808,2612.0,2611.8,3.08050032]
[1646887331374,1.53240808,2612.0,2611.9,0.0781779]
[1646887331574,1.53240808,2612.0,2611.7,0.08771358]
[1646887332279,2.79058808,2612.0,2611.7,0.08771358]
[1646887332476,3.79058808,2612.0,2611.4,0.09133536]
[1646887332678,3.79058808,2612.0,2611.8,0.07122034]
[1646887333077,2.83253808,2612.0,2611.8,0.07122034]
[1646887333277,1.83253808,2612.0,2611.8,0.07122034]
[1646887333478,2.8746412,2611.9,2611.8,0.07122034]
[1646887333679,1.91639,2611.9,2611.8,3.07122034]
[1646887333878,1.53253808,2612.0,2611.9,0.07813482]
[1646887334083,1.53253808,2612.0,2611.4,0.013534]
[1646887334279,1.90843808,2612.0,2611.4,0.013534]
[1646887334480,1.53253808,2612.0,2611.5,3.0]
[1646887334726,1.53253808,2612.0,2611.9,0.00118812]
[1646887334920,1.53253808,2612.0,2611.9,0.08285198]
[1646887335117,1.53253808,2612.0,2611.9,3.00118812]
[1646887335720,1.53253808,2612.0,2611.9,0.00118812]
[1646887336721,1.53253808,2612.0,2611.6,4.49950512]
[1646887336921,1.0686572,2611.8,2611.6,4.48783812]
[1646887337322,0.95821,2611.7,2611.6,4.48783812]
[1646887337921,0.95821,2611.7,2611.6,7.48783812]
[1646887338770,1.25821,2611.7,2611.6,4.48783812]
[1646887339173,0.95821,2611.7,2611.6,7.48783812]
[1646887339376,0.57647463,2611.8,2611.6,7.48783812]
[1646887339572,1.12207336,2611.7,2611.6,7.48783812]
[1646887340275,1.12207336,2611.7,2611.4,0.013534]
[1646887340276,1.12488974,2611.7,2611.4,0.013534]
[1646887340477,1.94578974,2611.7,2611.2,0.011667]
[1646887340674,1.94578974,2611.7,2610.9,0.014427]
[1646887340675,13.7627605,2611.6,2610.9,0.014427]
[1646887340875,0.3759,2611.4,2610.7,0.011667]
[1646887341073,0.8209,2611.4,2610.7,0.011667]
[1646887341274,1.00918619,2611.3,2611.0,3.0]
[1646887341675,2.92618299,2611.3,2611.0,3.0]
[1646887341874,0.3,2611.2,2611.0,3.0]
[1646887342526,3.26768619,2611.3,2610.7,0.011667]
[1646887342723,2.26768619,2611.3,2610.7,3.011667]
[1646887342926,2.26768619,2611.3,2610.7,0.011667]
[1646887342927,3.26768619,2611.3,2610.7,0.011667]
[1646887343126,3.26768619,2611.3,2611.0,3.0]
[1646887343323,3.26768619,2611.3,2610.7,0.011667]
[1646887343324,0.95843,2611.1,2610.7,0.011667]
[1646887343524,1.25843,2611.1,2610.7,0.011667]
[1646887343727,1.25843,2611.1,2610.6,4.5615]
[1646887343728,0.95849,2611.0,2610.6,7.5615]
[1646887344127,0.445,2610.9,2610.6,7.5615]
[1646887344325,0.95868,2610.8,2610.6,7.5615]
[1646887344527,0.95868,2610.8,2610.6,8.60476223]
[1646887344827,0.95868,2610.8,2610.6,7.5615]
[1646887345025,1.25868,2610.8,2610.6,7.5615]
[1646887345429,1.25868,2610.8,2610.7,0.08894564]
[1646887345626,1.70368,2610.8,2610.6,4.10304934]
[1646887345829,1.03406012,2610.7,2610.5,0.011667]
[1646887346080,1.03406012,2610.7,2609.9,3.0]
[1646887346081,0.95888,2610.4,2609.9,3.0]
[1646887346281,0.05004796,2610.3,2609.9,3.0]
[1646887346481,0.05831764,2610.2,2609.9,3.0]
[1646887346881,0.98983263,2610.1,2609.9,3.0]
[1646887347083,0.35831764,2610.2,2609.9,3.0]
[1646887347281,0.95879,2610.0,2609.6,3.5]
[1646887347479,0.95879,2610.0,2609.9,3.0]
[1646887348084,1.91765,2610.3,2609.9,7.43737106]
[1646887348280,1.91765,2610.3,2610.2,3.0]
[1646887348482,1.91717,2610.6,2610.2,3.0]
[1646887348683,1.91717,2610.6,2610.5,3.0]
[1646887348883,0.05557011,2611.1,2610.5,6.5]
[1646887349083,0.05557011,2611.1,2611.0,3.0]
[1646887349084,0.00276329,2611.1,2611.0,3.0]
[1646887349284,0.00276329,2611.1,2611.0,6.5]
[1646887349735,0.00276329,2611.1,2611.0,4.31695167]
[1646887350024,0.95823,2611.3,2611.0,4.2343552]
[1646887350221,0.95823,2611.3,2611.2,3.0]
[1646887354071,1.95811337,2611.3,2611.2,3.0]
[1646887354682,2.70589436,2611.3,2611.2,3.0]
[1646887354876,2.70589436,2611.3,2610.6,4.4026]
[1646887354877,1.96484281,2611.1,2610.6,4.4026]
[1646887355077,1.96484281,2611.1,2610.6,7.9026]
[1646887355276,2.26484281,2611.1,2610.6,5.44751666]
[1646887355683,1.96484281,2611.1,2610.6,5.44751666]
[1646887355877,1.96484281,2611.1,2610.7,3.5]
[1646887356176,1.96484281,2611.1,2610.6,5.44751666]
[1646887356577,1.96484281,2611.1,2610.6,4.4026]
[1646887356578,1.0053171,2611.0,2610.6,4.4026]
[1646887356776,0.04820079,2610.9,2610.6,4.4026]
[1646887356981,0.95845,2611.0,2610.6,4.4026]
[1646887357617,0.95845,2611.0,2610.7,3.5]
[1646887357918,0.95845,2611.0,2610.6,4.4026]
[1646887359118,0.95845,2611.0,2610.9,0.91642352]
[1646887359518,1.52439342,2611.0,2610.9,0.91642352]
[1646887359920,0.56594342,2611.0,2610.9,4.41642352]
[1646887360119,0.56594342,2611.0,2610.9,0.99558621]
[1646887360722,0.56594342,2611.0,2610.7,3.50132162]
[1646887360973,0.9584,2610.9,2610.7,0.00132162]
[1646887362473,0.57407691,2610.9,2610.7,0.00132162]
[1646887362773,0.57407691,2610.9,2610.7,0.08119796]
[1646887363274,0.57407691,2610.9,2610.7,3.58119796]
[1646887363972,0.57407691,2610.9,2610.7,0.08119796]
[1646887364274,0.57407691,2610.9,2610.7,0.00132162]
[1646887364476,0.00273674,2610.8,2610.7,0.00132162]
[1646887366723,0.57211335,2610.8,2610.7,0.00132162]
[1646887367124,0.57211335,2610.8,2610.7,1.02848669]
[1646887367522,0.57211335,2610.8,2610.7,4.52848669]
[1646887369167,0.00273674,2610.8,2610.7,4.52848669]
[1646887370170,0.00273674,2610.8,2610.7,1.02848669]
[1646887371374,0.00273674,2610.8,2610.7,4.52848669]
[1646887371771,0.00273674,2610.8,2610.7,1.02848669]
[1646887371971,0.00273674,2610.8,2610.7,1.10794139]
[1646887373015,0.00273674,2610.8,2610.7,0.00132162]
[1646887377069,0.00273674,2610.8,2610.7,3.50132162]
[1646887377269,0.00273674,2610.8,2610.7,0.00132162]
[1646887377471,0.00273674,2610.8,2610.7,1.04401328]
[1646887378072,0.00273674,2610.8,2610.7,0.00132162]
[1646887378670,0.00273674,2610.8,2610.7,8.553e-05]
[1646887379170,0.00273674,2610.8,2610.7,3.50008553]
[1646887379577,0.00273674,2610.8,2610.7,3.57870729]
[1646887379816,0.00273674,2610.8,2610.7,4.70749817]
[1646887380015,0.00273674,2610.8,2610.7,4.708739]
[1646887380821,0.00273674,2610.8,2610.7,0.07994812]
[1646887381020,0.00273674,2610.8,2610.7,0.00132636]
[1646887382621,3.674e-05,2610.8,2610.7,0.00132636]
[1646887382825,3.674e-05,2610.8,2610.7,3.50132636]
[1646887384267,3.674e-05,2610.8,2610.7,0.00132636]
[1646887384772,0.00286035,2610.8,2610.6,4.4732019]
[1646887384967,0.00286035,2610.8,2610.7,3.5]
[1646887385167,0.00286035,2610.8,2610.6,4.4732019]
[1646887386272,0.00286035,2610.8,2610.7,3.5]
[1646887386472,0.00286035,2610.8,2610.6,4.4732019]
[1646887386873,0.00286035,2610.8,2610.6,4.4026]
[1646887388419,0.00286035,2610.8,2610.7,3.5]
[1646887389026,0.00286035,2610.8,2610.6,4.4026]